bitfinex-derivatives/quotes_SOLF0:USTF0_20240920
["timestamp","ask_amount","ask_price","bid_price","bid_amount"]
[1726857272146,16.48,145.59,145.54,2.7252]
[1726857272637,3.4349,145.56,145.54,2.7252]
[1726857274441,3.4346,145.57,145.54,6.1604]
[1726857274742,16.48,145.61,145.54,6.1604]
[1726857274943,3.4346,145.57,145.54,6.1604]
[1726857275137,3.4346,145.57,145.54,2.7252]
[1726857275739,3.4348,145.56,145.54,2.7252]
[1726857275941,16.48,145.55,145.49,1.3494]
[1726857276337,16.48,145.53,145.46,2.7896]
[1726857276740,3.4364,145.5,145.46,2.7896]
[1726857276946,16.48,145.5,145.41,16.48]
[1726857277248,16.48,145.5,145.45,3.4373]
[1726857277636,3.4366,145.49,145.45,3.4373]
[1726857278438,3.4366,145.49,145.41,16.48]
[1726857278439,3.4366,145.49,145.46,3.4371]
[1726857278840,3.4363,145.5,145.46,3.4371]
[1726857279145,3.4363,145.5,145.43,16.48]
[1726857279457,3.4363,145.5,145.46,3.437]
[1726857281249,3.4363,145.5,145.47,3.4368]
[1726857281956,19.916,145.51,145.47,3.4368]
[1726857282954,19.916,145.51,145.48,3.4367]
[1726857283947,19.916,145.51,145.47,3.4368]
[1726857284149,19.916,145.51,145.43,16.48]
[1726857284551,19.916,145.51,145.47,3.4367]
[1726857286059,19.86810587,145.51,145.42,16.48]
[1726857286258,16.48,145.5,145.42,16.48]
[1726857286452,3.4369,145.47,145.43,3.4379]
[1726857286855,16.48,145.48,145.43,3.4379]
[1726857287454,3.437,145.47,145.43,3.4379]
[1726857287954,19.85161989,145.48,145.42,3.4381]
[1726857288157,19.85161989,145.48,145.4,4.1299]
[1726857288655,3.4373,145.46,145.43,3.4377]
[1726857289655,3.4374,145.45,145.42,3.438]
[1726857289955,16.48,145.46,145.4,4.1299]
[1726857290161,3.4379,145.43,145.41,3.4382]
[1726857290360,3.37161989,145.48,145.4,2.7896]
[1726857290361,16.48,145.45,145.4,2.7896]
[1726857291362,3.4377,145.44,145.4,6.228]
[1726857291661,16.48,145.45,145.4,6.228]
[1726857292059,16.48,145.45,145.4,2.7896]
[1726857292256,16.48,145.43,145.34,17.7755]
[1726857292449,16.48,145.43,145.35,2.8137]
[1726857292654,16.48,145.41,145.35,2.8137]
[1726857293159,19.9184,145.41,145.37,3.4391]
[1726857293361,19.9184,145.41,145.35,2.8137]
[1726857294665,3.4384,145.41,145.35,2.8137]
[1726857295059,3.4384,145.41,145.38,3.4389]
[1726857297265,3.4382,145.42,145.38,3.4389]
[1726857299068,16.48,145.43,145.35,2.8137]
[1726857299455,19.918,145.43,145.39,3.4387]
[1726857300469,3.4381,145.42,145.39,3.4387]
[1726857300669,3.4381,145.42,145.38,3.4389]
[1726857301159,16.48,145.43,145.39,3.4387]
[1726857302471,16.48,145.46,145.36,16.48]
[1726857302669,16.48,145.46,145.38,16.48]
[1726857303065,19.9173,145.46,145.42,3.438]
[1726857303365,16.48,145.48,145.4,16.48]
[1726857303568,3.4371,145.47,145.43,3.4378]
[1726857304265,3.4372,145.46,145.43,3.4378]
[1726857304772,16.48,145.48,145.43,3.4378]
[1726857304964,3.4371,145.47,145.43,3.4378]
[1726857305170,16.48,145.48,145.43,3.4378]
[1726857306173,16.48,145.48,145.44,3.4375]
[1726857306667,16.48,145.48,145.43,3.4378]
[1726857306970,16.48,145.48,145.41,4.1254]
[1726857307171,19.9168,145.48,145.44,3.4375]
[1726857307369,16.48,145.5,145.41,20.6054]
[1726857307772,16.48,145.52,145.46,3.437]
[1726857308176,3.4363,145.5,145.46,3.437]
[1726857308366,16.48,145.52,145.47,3.4369]
[1726857309071,16.48,145.5,145.43,16.48]
[1726857309266,3.4366,145.49,145.43,16.48]
[1726857309671,3.4366,145.49,145.45,3.4372]
[1726857309873,3.4366,145.49,145.43,16.48]
[1726857310184,3.4366,145.49,145.45,3.4372]
[1726857310475,3.4367,145.48,145.45,3.4372]
[1726857311965,16.48,145.5,145.46,3.437]
[1726857312678,3.4367,145.49,145.46,3.437]
[1726857312874,16.48,145.5,145.45,3.4373]
[1726857313077,16.48,145.48,145.41,4.1254]
[1726857313373,24.09594869,145.52,145.41,4.1254]
[1726857313374,16.48,145.46,145.41,4.1254]
[1726857313871,16.48,145.46,145.41,2.8258]
[1726857314076,16.48,145.45,145.36,17.8278]
[1726857314278,16.48,145.45,145.36,20.4568]
[1726857314672,19.85298683,145.45,145.36,20.4568]
[1726857314875,16.48,145.43,145.36,3.9768]
[1726857315579,16.48,145.43,145.37,3.4392]
[1726857315778,16.48,145.41,145.36,2.629]
[1726857315973,16.48,145.41,145.32,17.8278]
[1726857316281,3.4387,145.4,145.36,3.4394]
[1726857316779,16.48,145.41,145.35,3.4397]
[1726857317775,3.4389,145.39,145.35,3.4397]
[1726857320289,3.4392,145.38,145.34,3.4399]
[1726857320580,16.48,145.39,145.32,3.9554]
[1726857320974,3.4394,145.37,145.33,3.4401]
[1726857321376,3.4415,145.28,145.15,229.865]
[1726857321568,3.4415,145.28,145.21,16.48]
[1726857321772,16.48,145.3,145.21,16.48]
[1726857322081,16.48,145.26,145.2,2.5997]
[1726857322775,16.48,145.26,145.22,3.4427]
[1726857322976,16.48,145.28,145.2,2.5997]
[1726857324379,3.442,145.26,145.22,3.4428]
[1726857324580,3.442,145.26,145.2,2.5997]
[1726857324984,3.442,145.26,145.22,3.4427]
[1726857326186,3.442,145.26,145.23,3.4426]
[1726857326683,3.4417,145.27,145.23,3.4426]
[1726857327886,3.442,145.26,145.22,3.4428]
[1726857328186,16.48,145.26,145.2,2.5997]
[1726857328386,3.4421,145.25,145.22,3.4428]
[1726857328585,3.4421,145.25,145.2,2.5997]
[1726857329085,16.48,145.24,145.16,1.34]
[1726857329287,16.48,145.24,145.17,1.3691]
[1726857329486,19.9225,145.24,145.2,3.4431]
[1726857329687,3.4425,145.24,145.2,3.4431]
[1726857329875,16.48,145.26,145.2,3.4431]
[1726857330074,16.48,145.26,145.19,3.4435]
[1726857330279,16.48,145.24,145.19,3.4435]
[1726857331187,16.48,145.22,145.15,1.3762]
[1726857331884,16.48,145.24,145.15,17.8562]
[1726857332682,3.4433,145.21,145.17,3.444]
[1726857332889,16.48,145.22,145.15,1.3762]
[1726857333189,3.4437,145.19,145.15,4.8206]
[1726857334183,3.4437,145.19,145.16,3.4442]
[1726857334387,3.4434,145.2,145.15,1.3762]
[1726857334579,16.48,145.22,145.15,1.3762]
[1726857334992,3.4433,145.2,145.17,3.4439]
[1726857335687,16.48,145.22,145.15,1.3762]
[1726857336794,3.4431,145.21,145.19,3.4435]
[1726857337691,19.9229,145.22,145.19,3.4435]
[1726857339692,16.48,145.22,145.2,3.4432]
[1726857339896,16.48,145.24,145.2,3.4432]
[1726857340290,3.4426,145.23,145.2,3.4432]
[1726857340886,3.4426,145.23,145.19,3.4434]
[1726857341495,3.4426,145.23,145.2,3.4433]
[1726857342805,19.9225,145.24,145.16,1.2999]
[1726857343103,16.48,145.26,145.17,16.48]
[1726857343397,19.9221,145.26,145.22,3.4427]
[1726857343698,16.48,145.28,145.21,16.48]
[1726857343899,19.9216,145.28,145.25,3.4421]
[1726857344203,16.48,145.28,145.22,2.6555]
[1726857344701,19.9214,145.28,145.24,3.4422]
[1726857344900,19.9214,145.28,145.22,3.9534]
[1726857345196,3.4417,145.27,145.22,3.9534]
[1726857345793,3.4417,145.27,145.23,3.4424]
[1726857346400,3.4417,145.27,145.23,3.4425]
[1726857347899,3.4419,145.26,145.23,3.4425]
[1726857350201,3.4422,145.25,145.22,6.0983]
[1726857350399,3.4422,145.25,145.22,4.7369]
[1726857351597,16.48,145.26,145.22,1.2941]
[1726857351793,16.48,145.25,145.17,16.48]
[1726857352000,16.48,145.25,145.17,1.3406]
[1726857352202,3.4427,145.23,145.2,3.4431]
[1726857352799,3.4427,145.23,145.21,3.443]
[1726857354116,3.4425,145.24,145.21,3.443]
[1726857354903,19.9222,145.25,145.22,3.4427]
[1726857360503,16.48,145.25,145.23,3.4426]
[1726857360710,16.48,145.25,145.17,17.8206]
[1726857360711,16.48,145.27,145.19,16.48]
[1726857361206,16.48,145.27,145.24,3.4422]
[1726857361413,16.48,145.29,145.21,20.0003168]
[1726857361616,19.9212,145.29,145.25,3.4419]
[1726857362813,16.48,145.29,145.22,1.4122]
[1726857363018,16.48,145.3,145.23,1.3884]
[1726857363208,3.4413,145.29,145.23,1.3884]
[1726857364317,3.4413,145.29,145.25,3.4419]
[1726857364516,3.4413,145.29,145.23,1.3884]
[1726857364517,16.48,145.3,145.23,1.3884]
[1726857364717,19.84673621,145.29,145.23,1.3884]
[1726857364909,16.48,145.29,145.23,4.8308]
[1726857365109,3.4418,145.27,145.23,4.8308]
[1726857366615,19.9218,145.27,145.23,4.8308]
[1726857367212,3.4415,145.28,145.23,1.3884]
[1726857367412,16.48,145.31,145.23,1.3884]
[1726857367919,16.48,145.31,145.27,3.4415]
[1726857368415,3.4411,145.3,145.27,3.4415]
[1726857368805,16.48,145.31,145.28,3.4412]
[1726857369012,16.48,145.33,145.28,3.4412]
[1726857369715,16.48,145.31,145.23,1.3884]
[1726857370316,16.48,145.31,145.25,3.4419]
[1726857370317,3.4414,145.29,145.25,3.4419]
[1726857370613,16.48,145.27,145.23,1.3884]
[1726857370820,3.4419,145.26,145.23,4.8308]
[1726857372020,19.9217,145.27,145.24,3.4423]
[1726857374121,16.48,145.27,145.24,3.4423]
[1726857374426,16.48,145.29,145.23,1.3884]
[1726857374615,16.48,145.31,145.23,1.3884]
[1726857374919,3.4412,145.29,145.26,3.4418]
[1726857375829,3.441,145.3,145.27,3.4416]
[1726857376927,3.441,145.3,145.26,3.4418]
[1726857378725,16.48,145.29,145.23,1.3884]
[1726857379430,3.4417,145.27,145.24,3.4422]
[1726857379933,16.48,145.29,145.23,1.3884]
[1726857380727,19.9213,145.29,145.26,3.4417]
[1726857380930,19.9213,145.29,145.23,1.3884]
[1726857381118,3.4408,145.31,145.23,17.8684]
[1726857381321,16.48,145.33,145.23,17.8684]
[1726857381730,16.48,145.33,145.29,3.441]
[1726857381937,16.48,145.33,145.23,17.8684]
[1726857381938,16.48,145.33,145.25,16.48]
[1726857382123,16.48,145.35,145.27,16.48]
[1726857382426,3.4402,145.34,145.28,1.3934]
[1726857382629,16.48,145.35,145.28,1.3934]
[1726857382825,3.4403,145.33,145.3,3.4408]
[1726857383225,16.48,145.35,145.3,3.4408]
[1726857383927,16.48,145.34,145.28,1.3934]
[1726857384135,3.4409,145.31,145.28,1.3934]
[1726857384947,3.4409,145.31,145.28,4.8348]
[1726857385448,3.4405,145.32,145.29,3.4411]
[1726857386342,3.4404,145.33,145.29,3.4411]
[1726857388041,19.9201,145.34,145.3,3.4408]
[1726857388351,16.48,145.37,145.28,1.3934]
[1726857388649,19.87815949,145.39,145.33,3.4401]
[1726857388846,16.48,145.39,145.31,16.48]
[1726857389045,16.48,145.37,145.29,19.1544]
[1726857389233,3.43326302,145.39,145.29,19.1544]
[1726857389433,6.8753,145.44,145.29,19.1544]
[1726857389639,3.4393,145.37,145.33,3.4401]
[1726857389947,3.4393,145.37,145.31,16.48]
[1726857390244,3.4395,145.36,145.29,19.1544]
[1726857390935,3.4398,145.35,145.29,19.1544]
[1726857391135,16.48,145.35,145.29,2.6744]
[1726857391340,16.48,145.35,145.3,3.4408]
[1726857391535,3.4404,145.33,145.3,3.4408]
[1726857392949,3.4402,145.33,145.31,3.4406]
[1726857394149,3.4401,145.34,145.31,3.4406]
[1726857394350,16.48,145.35,145.31,3.4406]
[1726857394749,3.4401,145.34,145.31,3.4406]
[1726857394949,16.48,145.35,145.32,3.4404]
[1726857395355,19.9198,145.35,145.32,3.4404]
[1726857396356,16.48,145.35,145.29,2.6744]
[1726857396555,16.48,145.35,145.29,1.3761]
[1726857396757,16.48,145.34,145.29,1.3761]
[1726857396951,3.4404,145.33,145.29,4.8171]
[1726857397745,3.4405,145.32,145.29,4.8171]
[1726857398560,3.4403,145.33,145.3,3.4409]
[1726857399049,3.4405,145.32,145.29,4.8171]
[1726857399350,16.48,145.34,145.23,17.8305]
[1726857399560,16.48,145.3,145.24,2.8498]
[1726857399758,16.48,145.28,145.24,2.8498]
[1726857400957,16.48,145.28,145.2,137.64]
[1726857401161,16.48,145.28,145.22,3.4427]
[1726857401463,16.48,145.26,145.18,16.48]
[1726857401849,3.4422,145.25,145.21,3.4429]
[1726857404361,3.4422,145.25,145.22,3.4428]
[1726857405159,19.922,145.26,145.18,16.48]
[1726857405364,3.442,145.26,145.2,16.48]
[1726857405567,16.48,145.28,145.2,16.48]
[1726857405864,3.4418,145.27,145.23,3.4425]
[1726857406567,3.4419,145.26,145.23,3.4425]
[1726857407261,16.48,145.28,145.23,3.4425]
[1726857407466,3.4417,145.27,145.23,3.4425]
[1726857407667,16.48,145.28,145.23,3.4425]
[1726857407965,3.4418,145.27,145.23,3.4425]
[1726857409770,3.4419,145.26,145.23,3.4425]
[1726857411670,3.4417,145.27,145.23,3.4425]
[1726857412166,3.4406,145.32,145.22,16.48]
[1726857412363,16.48,145.32,145.24,16.48]
[1726857412563,16.48,145.3,145.23,1.3026]
[1726857412757,3.4413,145.29,145.25,3.442]
[1726857413070,16.48,145.3,145.23,1.3026]
[1726857413261,16.48,145.3,145.25,3.4421]
[1726857413567,16.48,145.3,145.23,1.3026]
[1726857414070,3.4414,145.29,145.23,1.3026]
[1726857414273,16.48,145.29,145.23,1.3026]
[1726857414970,3.4415,145.28,145.23,1.3026]
[1726857416071,3.4415,145.28,145.24,3.4422]
[1726857416864,20.65,145.36,145.23,1.3026]
[1726857417170,16.48,145.31,145.23,1.3026]
[1726857417570,16.48,145.29,145.25,3.442]
[1726857418675,3.4415,145.28,145.25,3.442]
[1726857421069,16.48,145.29,145.21,2.7394]
[1726857421373,16.48,145.27,145.21,2.7394]
[1726857421573,19.9218,145.27,145.21,2.7394]
[1726857422272,3.4415,145.28,145.21,2.7394]
[1726857422663,19.84936316,145.31,145.22,16.48]
[1726857422865,16.48,145.31,145.22,16.48]
[1726857423068,16.48,145.31,145.23,1.3282]
[1726857423976,14.0112,145.29,145.24,10.57]
[1726857424368,14.0112,145.29,145.26,3.4418]
[1726857424779,3.4414,145.28,145.26,3.4418]
[1726857425073,14.0114,145.28,145.25,3.442]
[1726857427878,3.4417,145.27,145.24,3.4423]
[1726857428174,10.57,145.28,145.24,3.4423]
[1726857428376,3.4418,145.27,145.24,3.4423]
[1726857428576,10.57,145.26,145.24,3.4423]
[1726857428771,10.57,145.26,145.23,4.7707]
[1726857428974,10.57,145.26,145.23,3.4425]
[1726857430080,14.012,145.26,145.24,3.4423]
[1726857430980,10.57,145.28,145.25,3.4421]
[1726857431180,10.57,145.28,145.24,10.57]
[1726857431679,10.57,145.29,145.25,10.57]
[1726857431871,10.57,145.31,145.27,10.57]
[1726857432078,14.0108,145.31,145.28,3.4412]
[1726857432582,10.57,145.31,145.29,3.4411]
[1726857433770,10.57,145.31,145.21,6.09889872]
[1726857433979,10.57,145.35,145.3,10.57]
[1726857434279,10.57,145.35,145.31,10.57]
[1726857434877,10.57,145.34,145.3,10.57]
[1726857435083,10.57,145.33,145.29,10.57]
[1726857435474,10.57,145.32,145.24,1.3228]
[1726857435670,10.57,145.32,145.28,10.57]
[1726857436082,14.0106,145.32,145.29,3.441]
[1726857437082,10.57,145.34,145.29,10.57]
[1726857437282,10.57,145.33,145.29,10.57]
[1726857437485,10.57,145.32,145.24,1.3228]
[1726857437678,10.57,145.32,145.27,10.57]
[1726857438180,3.4407,145.31,145.24,1.3228]
[1726857438375,10.57,145.31,145.26,10.57]
[1726857438781,10.57,145.28,145.25,10.57]
[1726857439384,10.57,145.28,145.27,3.4416]
[1726857439585,10.57,145.28,145.24,11.8928]
[1726857440084,16.52,145.31,145.27,3.4416]
[1726857440280,16.52,145.31,145.24,1.3228]
[1726857441082,3.4413,145.29,145.26,3.4417]
[1726857441785,3.4415,145.28,145.26,3.4417]
[1726857441984,3.4415,145.28,145.25,3.442]
[1726857442185,16.52,145.31,145.25,3.442]
[1726857442388,3.4416,145.28,145.25,3.442]
[1726857442586,16.52,145.31,145.25,3.442]
[1726857442883,16.52,145.29,145.24,3.4423]
[1726857443786,16.52,145.29,145.23,3.4426]
[1726857443987,16.52,145.27,145.23,3.4426]
[1726857444182,16.52,145.25,145.21,2.7394]
[1726857444391,16.52,145.25,145.22,3.4428]
[1726857444583,19.9623,145.25,145.22,3.4428]
[1726857446587,16.52,145.25,145.2,3.4431]
[1726857447789,19.9626,145.23,145.19,3.4434]
[1726857447987,16.52,145.23,145.16,2.7285]
[1726857448197,3.4433,145.2,145.16,2.7285]
[1726857448988,3.4433,145.2,145.17,3.4439]
[1726857449493,3.4435,145.19,145.16,3.4442]
[1726857449793,16.52,145.22,145.14,1.3729]
[1726857449994,3.4434,145.2,145.17,3.4438]
[1726857451092,3.4432,145.21,145.17,3.4438]
[1726857451394,16.52,145.22,145.17,3.4438]
[1726857451795,3.4432,145.21,145.17,3.4438]
[1726857453896,3.4432,145.21,145.18,3.4438]
[1726857454095,3.4432,145.21,145.14,1.3729]
[1726857454897,3.4432,145.21,145.17,3.4438]
[1726857455199,16.52,145.22,145.17,3.4438]
[1726857455603,3.4433,145.21,145.17,3.4438]
[1726857456105,16.52,145.22,145.17,3.4438]
[1726857456500,16.52,145.22,145.14,1.3729]
[1726857456501,3.4434,145.2,145.16,3.4441]
[1726857457003,3.4434,145.2,145.14,1.3729]
[1726857457904,3.4434,145.2,145.17,3.444]
[1726857458208,3.4437,145.19,145.14,1.3729]
[1726857458409,3.4437,145.19,145.15,3.4444]
[1726857458592,3.4438,145.18,145.15,3.4444]
[1726857458792,3.4438,145.18,145.14,1.3729]
[1726857459003,16.52,145.2,145.16,3.4442]
[1726857459503,3.4437,145.19,145.16,3.4442]
[1726857461709,16.52,145.21,145.14,1.3729]
[1726857462198,10.58,145.2,145.18,3.4437]
[1726857462902,10.58,145.2,145.19,3.4435]
[1726857463201,10.58,145.2,145.16,10.58]
[1726857464008,10.58,145.19,145.15,10.58]
[1726857464407,10.58,145.19,145.17,3.4439]
[1726857466202,10.58,145.19,145.18,3.4438]
[1726857466805,14.0234,145.2,145.18,3.4438]
[1726857467408,10.58,145.2,145.18,3.4438]
[1726857468912,14.0233,145.2,145.17,3.4439]
[1726857471415,3.4433,145.2,145.18,3.4438]
[1726857471709,14.0233,145.2,145.18,3.4438]
[1726857472014,14.0233,145.2,145.17,3.4439]
[1726857475507,3.4435,145.19,145.17,3.4439]
[1726857475710,10.58,145.18,145.14,1.3729]
[1726857475907,10.58,145.16,145.12,13.2592]
[1726857476104,10.58,145.17,145.12,13.2592]
[1726857476308,10.58,145.17,145.15,3.4445]
[1726857477208,20.65,145.24,145.15,3.4445]
[1726857477418,10.58,145.17,145.15,3.4445]
[1726857479222,10.58,145.18,145.14,10.58]
[1726857479614,10.58,145.18,145.16,3.4441]
[1726857481022,10.58,145.18,145.14,10.58]
[1726857481226,14.0237,145.19,145.15,10.58]
[1726857481615,14.0237,145.19,145.16,3.4441]
[1726857481917,3.4438,145.18,145.16,3.4441]
[1726857482219,10.58,145.19,145.16,3.4441]
[1726857482717,10.58,145.17,145.12,2.6792]
[1726857482921,10.58,145.14,145.12,2.6792]
[1726857483623,10.58,145.13,145.09,10.58]
[1726857483925,10.58,145.11,145.06,148.36]
[1726857484123,20.65,145.19,145.1,10.58]
[1726857484324,10.58,145.14,145.1,10.58]
[1726857484525,3.4448,145.14,145.11,3.4453]
[1726857484824,14.0248,145.14,145.11,3.4453]
[1726857485519,14.025,145.13,145.1,3.4455]
[1726857486732,10.58,145.13,145.11,3.4454]
[1726857487523,10.58,145.13,145.1,3.4456]
[1726857487726,10.58,145.13,145.09,10.58]
[1726857488226,10.58,145.13,145.11,3.4454]
[1726857488422,10.58,145.14,145.1,10.58]
[1726857488828,14.0248,145.14,145.11,3.4454]
[1726857489628,10.58,145.15,145.11,10.58]
[1726857490015,14.0246,145.15,145.12,3.445]
[1726857490219,10.58,145.14,145.1,10.58]
[1726857490625,14.0248,145.14,145.11,3.4453]
[1726857490926,10.58,145.14,145.1,10.58]
[1726857491125,10.58,145.14,145.09,10.58]
[1726857491324,3.4451,145.13,145.1,3.4456]
[1726857491519,3.4451,145.13,145.07,3.48610803]
[1726857491721,14.0251,145.13,145.08,10.58]
[1726857491920,14.0251,145.13,145.1,3.4455]
[1726857493026,10.58,145.13,145.05,2.7549]
[1726857493332,10.58,145.1,145.06,10.58]
[1726857493728,14.0258,145.1,145.07,3.4462]
[1726857494128,10.58,145.1,145.07,3.4462]
[1726857494435,10.58,145.1,145.05,13.2721]
[1726857494936,3.4461,145.09,145.07,3.4463]
[1726857495232,3.4461,145.09,145.05,13.2721]
[1726857495628,10.58,145.1,145.07,3.4463]
[1726857495832,14.0258,145.1,145.07,3.4463]
[1726857496325,3.446,145.09,145.07,3.4463]
[1726857497034,10.58,145.08,145.03,10.58]
[1726857497234,10.58,145.06,145.02,10.58]
[1726857497536,20.65,145.12,145.03,10.58]
[1726857497738,10.58,145.08,145.04,10.58]
[1726857497925,10.58,145.05,144.98,4.0117]
[1726857498122,10.58,145.02,144.98,4.0117]
[1726857498330,10.58,145.02,144.98,14.5917]
[1726857498528,10.58,145.02,145.0,3.448]
[1726857498729,10.58,145.03,144.99,10.58]
[1726857498931,10.58,145.05,145.0,10.58]
[1726857499130,20.65,145.17,145.0,10.58]
[1726857499330,10.58,145.05,145.0,10.58]
[1726857499837,14.027,145.05,145.02,3.4475]
[1726857500538,10.58,145.05,145.02,3.4475]
[1726857501826,14.0269,145.05,145.02,3.4475]
[1726857502028,10.58,145.05,145.0,10.58]
[1726857502635,10.58,145.05,145.02,3.4474]
[1726857502834,10.58,145.03,144.98,4.0117]
[1726857503031,10.58,145.03,145.01,3.4476]
[1726857503838,10.58,145.05,145.02,3.4476]
[1726857504231,10.58,145.05,145.0,10.58]
[1726857504432,10.58,145.05,144.96,3.4375862]
[1726857504632,10.58,145.03,144.99,10.58]
[1726857504941,10.58,145.03,145.0,3.4478]
[1726857505142,10.58,145.03,144.99,10.58]
[1726857505450,10.58,145.03,145.0,3.4479]
[1726857505642,10.58,145.03,144.99,10.58]
[1726857506143,10.58,145.03,145.01,3.4478]
[1726857506548,10.58,145.02,144.97,2.745]
[1726857506737,10.58,145.01,144.97,13.325]
[1726857506933,20.65,145.11,144.99,10.58]
[1726857507140,14.0276,145.02,144.99,14.0282]
[1726857507346,14.0276,145.02,144.99,3.4482]
[1726857507650,14.0274,145.03,144.99,10.58]
[1726857507843,14.0274,145.03,144.97,2.745]
[1726857508039,14.0274,145.03,145.0,3.4479]
[1726857508244,14.0276,145.02,144.99,10.58]
[1726857508447,10.58,145.02,144.99,10.58]
[1726857508648,14.0276,145.02,144.97,2.745]
[1726857508842,14.0276,145.02,144.98,10.58]
[1726857509149,14.0276,145.02,145.0,3.448]
[1726857509542,10.58,145.01,145.0,3.448]
[1726857509849,10.58,145.01,144.99,3.4483]
[1726857510438,3.4474,145.03,144.99,10.58]
[1726857510645,14.0274,145.03,144.99,10.58]
[1726857510849,10.58,145.02,145.0,3.4479]
[1726857511550,3.4472,145.04,144.99,10.58]
[1726857511742,10.58,145.03,144.99,10.58]
[1726857511938,10.58,145.02,145.0,3.4478]
[1726857512143,10.58,145.02,144.99,10.58]
[1726857512543,10.58,145.02,145.0,3.4479]
[1726857512740,10.58,145.03,145.0,10.58]
[1726857512953,10.58,145.05,145.01,10.58]
[1726857513244,10.58,145.05,144.99,3.37736949]
[1726857513449,10.58,145.04,144.98,1.3625]
[1726857513752,10.58,145.04,145.01,3.4476]
[1726857513946,10.58,145.02,145.01,3.4476]
[1726857514141,10.58,145.02,145.0,3.4478]
[1726857514548,10.58,145.02,144.99,10.58]
[1726857515255,3.4472,145.04,144.99,10.58]
[1726857515552,14.0272,145.04,144.99,10.58]
[1726857515863,10.58,145.05,145.0,10.58]
[1726857516353,14.0269,145.05,145.0,10.58]
[1726857516654,10.58,145.05,145.0,10.58]
[1726857517048,10.58,145.05,145.03,3.4472]
[1726857517551,10.58,145.04,145.0,10.58]
[1726857517856,10.58,145.06,145.01,10.58]
[1726857519056,10.58,145.06,145.04,3.447]
[1726857520656,10.58,145.05,145.02,3.4474]
[1726857521068,10.58,145.05,145.03,3.4473]
[1726857521453,10.58,145.05,145.0,10.58]
[1726857521755,14.0269,145.05,145.0,10.58]
[1726857522353,14.0269,145.05,145.03,3.4473]
[1726857522760,14.0268,145.06,145.01,10.58]
[1726857523345,3.4469,145.05,145.03,3.4472]
[1726857523556,10.58,145.06,145.03,3.4472]
[1726857523964,14.0268,145.06,145.03,3.4472]
[1726857524147,10.58,145.05,145.02,3.4475]
[1726857524351,14.027,145.05,145.01,10.58]
[1726857525759,14.027,145.05,145.03,3.4473]
[1726857526055,10.58,145.05,145.03,3.4473]
[1726857526261,14.0268,145.06,145.02,10.58]
[1726857526649,14.0268,145.06,145.04,3.4471]
[1726857527457,10.58,145.05,145.03,3.4472]
[1726857528556,3.4458,145.1,145.07,3.4464]